bitfinex-derivatives/quotes_SOLF0:USTF0_20241008
["timestamp","ask_amount","ask_price","bid_price","bid_amount"]
[1728394579327,29.4151,144.07,143.99,0.12502]
[1728394579528,3.4721,144.06,143.99,0.12502]
[1728394579731,2.7451,144.07,143.99,0.12502]
[1728394580133,3.4722,144.05,143.99,0.12502]
[1728394580327,2.7451,144.07,144.01,3.4729]
[1728394580632,3.4726,144.04,143.99,0.12502]
[1728394580836,29.4151,144.07,144.03,3.4726]
[1728394581024,29.4151,144.07,143.99,0.12502]
[1728394581726,3.4723,144.05,143.99,0.12502]
[1728394581933,29.4151,144.07,143.99,0.12502]
[1728394582430,29.4151,144.07,144.02,3.4728]
[1728394582431,3.4722,144.06,144.02,3.4728]
[1728394582629,29.4151,144.07,144.02,3.4728]
[1728394582935,3.4726,144.04,144.0,3.4732]
[1728394583122,29.4151,144.07,143.99,0.12502]
[1728394583630,3.4724,144.05,143.99,0.12502]
[1728394584533,3.4724,144.05,144.0,3.4732]
[1728394584731,29.4151,144.07,143.99,0.12502]
[1728394584935,33.9286,144.09,143.99,0.12502]
[1728394585424,3.4718,144.07,144.04,3.4724]
[1728394585626,3.4718,144.07,143.99,0.12502]
[1728394585933,3.472,144.06,144.03,3.4726]
[1728394586131,33.9286,144.09,143.99,0.12502]
[1728394586445,33.9286,144.09,144.01,3.473]
[1728394586734,3.4724,144.05,143.99,0.12502]
[1728394587033,33.9286,144.09,143.99,0.12502]
[1728394587242,3.4732,144.01,143.99,0.12502]
[1728394587427,5.92,144.05,143.99,0.12502]
[1728394587744,3.4728,144.03,143.99,0.12502]
[1728394588129,5.92,144.04,143.99,0.12502]
[1728394589229,1.0,144.08,144.0,5.92]
[1728394589429,27.67,144.08,144.0,5.92]
[1728394589632,27.67,144.08,144.02,3.4728]
[1728394589828,27.67,144.08,144.0,5.92]
[1728394590539,16.67,144.06,144.0,5.92]
[1728394590936,16.67,144.06,143.99,0.12502]
[1728394591144,3.4728,144.03,144.0,3.4732]
[1728394591441,16.67,144.04,144.0,3.4732]
[1728394591840,3.4727,144.03,144.0,3.4732]
[1728394592035,16.67,144.04,144.0,3.4732]
[1728394592237,16.67,144.02,143.99,0.12502]
[1728394592439,3.4731,144.01,143.99,0.12502]
[1728394593136,3.4734,144.0,143.99,0.12502]
[1728394593436,16.67,144.01,143.99,0.12502]
[1728394593830,20.1433,144.01,143.99,0.12502]
[1728394594343,26.0633,144.01,143.99,0.12502]
[1728394594643,3.4734,144.0,143.99,0.12502]
[1728394595952,5.92,144.01,143.93,0.12502]
[1728394596145,26.69,144.0,143.93,0.12502]
[1728394596352,26.69,144.0,143.95,3.4745]
[1728394596746,26.69,144.0,143.93,0.12502]
[1728394597834,3.4738,143.99,143.96,3.4743]
[1728394598250,5.92,144.01,143.93,0.12502]
[1728394598446,4.0721,144.03,143.93,6.04502]
[1728394598948,3.4734,144.0,143.97,3.474]
[1728394599743,3.4737,143.99,143.96,3.4742]
[1728394599952,26.69,144.02,143.93,6.04502]
[1728394600350,3.4735,144.0,143.95,3.4744]
[1728394600646,26.69,144.02,143.93,6.04502]
[1728394600953,3.4734,144.01,143.97,3.4739]
[1728394601251,3.4734,144.01,143.93,6.04502]
[1728394601748,4.0721,144.03,143.93,6.04502]
[1728394602048,9.8921,144.03,143.93,6.04502]
[1728394602251,9.8921,144.03,143.96,3.4744]
[1728394602455,13.365,144.03,143.93,6.04502]
[1728394602646,27.69,144.08,143.95,6.9492]
[1728394602839,5.82,144.06,143.96,4.3332]
[1728394603047,3.4725,144.04,143.97,5.82]
[1728394603355,5.82,144.06,144.02,3.4727]
[1728394603539,5.82,144.06,143.97,5.82]
[1728394603942,5.82,144.06,144.01,3.4731]
[1728394604149,3.66989753,144.05,143.96,4.3332]
[1728394604451,1.3267,144.04,143.98,3.4737]
[1728394604755,1.3267,144.04,143.96,2.898]
[1728394604756,1.3267,144.04,143.96,1.4446]
[1728394605143,0.12502,144.05,143.96,1.4446]
[1728394605447,3.4725,144.04,143.96,1.4446]
[1728394605647,0.12502,144.05,143.96,1.4446]
[1728394608061,3.4731,144.02,143.99,3.4736]
[1728394608253,5.82,144.03,143.96,1.4446]
[1728394608754,5.82,144.03,144.01,3.4731]
[1728394608953,5.82,144.03,143.96,1.4446]
[1728394609255,5.82,144.03,144.01,3.473]
[1728394609449,5.82,144.03,143.96,1.4446]
[1728394609953,5.82,144.03,143.99,3.4734]
[1728394610157,9.2928,144.03,143.99,3.4734]
[1728394610475,9.2928,144.03,143.96,1.4446]
[1728394611351,9.2928,144.03,144.0,3.4733]
[1728394612546,0.12502,144.05,143.96,1.4446]
[1728394612860,9.41732,144.05,144.02,3.4728]
[1728394613460,9.43575512,144.05,143.96,1.4446]
[1728394614363,5.94502,144.05,143.96,1.4446]
[1728394615067,3.4726,144.04,144.0,3.4733]
[1728394615373,9.34649843,144.05,143.96,1.4446]
[1728394615561,3.4731,144.02,143.96,1.4446]
[1728394616359,3.59722,144.05,143.96,28.1346]
[1728394616554,0.12502,144.05,143.96,28.1346]
[1728394616964,0.12502,144.05,144.03,3.4725]
[1728394618758,0.12502,144.05,144.04,3.4724]
[1728394619764,0.12502,144.05,144.04,8.73584251]
[1728394620158,0.12502,144.05,144.04,3.4724]
[1728394620487,5.82,144.12,144.04,5.26544121]
[1728394620664,16.79502,144.11,144.05,11.11965131]
[1728394620859,20.26592,144.11,144.06,5.26544121]
[1728394621063,16.79502,144.11,144.02,16.67]
[1728394621275,16.79502,144.11,144.03,11.11590263]
[1728394621567,16.79502,144.11,144.07,3.4716]
[1728394621964,16.79502,144.11,144.02,16.67]
[1728394622157,16.79502,144.11,144.03,12.51921563]
[1728394622360,16.79502,144.11,144.08,3.4713]
[1728394622556,16.79502,144.11,144.03,1.3994]
[1728394622753,16.79502,144.11,144.09,3.4712]
[1728394622965,16.79502,144.11,144.07,16.67]
[1728394622966,0.12502,144.11,144.07,16.67]
[1728394623160,0.12502,144.11,144.08,11.11324787]
[1728394623358,0.12502,144.11,144.1,3.471]
[1728394623564,0.12502,144.17,144.1,27.78324787]
[1728394623764,0.12502,144.17,144.11,11.11324787]
[1728394623979,16.67,144.15,144.11,5.26172497]
[1728394624274,20.1405,144.12,144.11,5.26172497]
[1728394624573,16.67,144.12,144.03,5.82]
[1728394624760,16.67,144.12,144.06,11.10797877]
[1728394624969,16.67,144.12,144.03,5.82]
[1728394624970,16.67,144.12,144.07,11.10797877]
[1728394625266,16.67,144.12,144.07,3.4716]
[1728394625462,3.471,144.11,144.07,3.4716]
[1728394625661,16.67,144.12,144.07,3.4717]
[1728394625856,6.2491,144.13,144.03,5.82]
[1728394626058,1.3971,144.14,144.06,11.11036325]
[1728394626263,353.79502,144.17,144.12,3.4703]
[1728394626566,9.2897,144.16,144.12,3.4703]
[1728394626775,0.12502,144.17,144.13,3.4701]
[1728394626960,9.41442,144.17,144.13,3.4701]
[1728394627157,5.94502,144.17,144.13,3.4701]
[1728394627581,3.4696,144.16,144.13,3.4701]
[1728394629666,0.12502,144.17,144.08,1.3361]
[1728394629875,5.92502,144.17,144.09,11.09796582]
[1728394630170,0.12502,144.17,144.1,11.09796582]
[1728394630365,0.12502,144.17,144.11,11.09796582]
[1728394630574,0.12502,144.17,144.08,28.0061]
[1728394630773,0.12502,144.17,144.1,26.67]
[1728394630979,0.12502,144.17,144.13,26.67]
[1728394631193,0.12502,144.17,144.16,3.4695]
[1728394632176,5.92502,144.23,144.17,3.4692]
[1728394632380,0.12502,144.23,144.15,32.47]
[1728394632768,0.12502,144.23,144.2,3.4684]
[1728394632971,0.12502,144.23,144.15,5.8]
[1728394633169,3.4685,144.21,144.15,5.8]
[1728394633371,3.4685,144.21,144.17,3.4691]
[1728394633565,3.4685,144.21,144.14,9.89554641]
[1728394633770,0.12502,144.23,144.14,7.21914641]
[1728394633771,32.47,144.22,144.14,7.21914641]
[1728394633973,26.67,144.2,144.14,5.83954641]
[1728394634378,26.67,144.2,144.16,3.4693]
[1728394634574,26.67,144.2,144.17,5.81672982]
[1728394634774,3.469,144.19,144.14,5.83954641]
[1728394635081,32.47,144.22,144.15,15.12409697]
[1728394635278,5.8,144.22,144.16,15.12409697]
[1728394635471,0.12502,144.23,144.18,3.4689]
[1728394635675,0.12502,144.23,144.19,15.12409697]
[1728394635868,0.12502,144.23,144.2,5.81696037]
[1728394636173,0.12502,144.23,144.16,8.53699175]
[1728394636380,0.12502,144.23,144.17,15.09315197]
[1728394636581,0.12502,144.23,144.2,3.4684]
[1728394636779,0.12502,144.23,144.21,5.80505845]
[1728394636988,0.12502,144.23,144.19,5.8]
[1728394637283,0.12502,144.23,144.22,3.4681]
[1728394637486,0.12502,144.23,144.22,18.55604703]
[1728394637981,0.12502,144.29,144.22,15.08794703]
[1728394638207,0.12502,144.29,144.21,2.7531]
[1728394638500,0.12502,144.29,144.22,5.79484833]
[1728394638682,0.12502,144.29,144.23,47.53660567]
[1728394638886,0.12502,144.29,144.28,3.4666]
[1728394639084,0.12502,144.29,144.22,8.50443219]
[1728394639278,0.12502,144.29,144.23,20.84364799]
[1728394639475,0.12502,144.29,144.24,15.04364799]
[1728394639679,3.4667,144.28,144.25,5.78601846]
[1728394639878,0.12502,144.29,144.23,3.4678]
[1728394640099,0.12502,144.29,144.24,5.78356945]
[1728394640275,3.4676,144.25,144.21,9.24881186]
[1728394640477,5.8,144.26,144.22,5.78129183]
[1728394640783,3.4678,144.24,144.18,2.844]
[1728394640981,5.8,144.26,144.19,15.03371785]
[1728394641180,5.8,144.26,144.2,15.03371785]
[1728394641378,5.8,144.26,144.21,15.03371785]
[1728394641588,5.8,144.26,144.18,11.33634892]
[1728394641589,5.8,144.26,144.23,3.4678]
[1728394641783,1.0,144.28,144.21,5.8]
[1728394641994,0.12502,144.29,144.21,5.8]
[1728394642176,0.12502,144.29,144.22,15.01906813]
[1728394642377,0.12502,144.29,144.23,32.44787051]
[1728394642577,0.12502,144.29,144.24,17.77146813]
[1728394642774,0.12502,144.29,144.25,20.81906813]
[1728394643085,0.12502,144.29,144.26,15.00797593]
[1728394643278,0.12502,144.29,144.27,5.77787051]
[1728394643478,0.12502,144.29,144.26,9.22122925]
[1728394643790,0.12502,144.29,144.22,8.48040362]
[1728394644083,0.12502,144.29,144.23,14.99469696]
[1728394644288,0.12502,144.29,144.24,5.76756955]
[1728394644584,3.4667,144.28,144.19,43.73600362]
[1728394644881,0.12502,144.29,144.2,14.98707133]
[1728394645203,0.12502,144.29,144.19,35.2556]
[1728394645591,3.467,144.27,144.23,3.4677]
[1728394646381,0.12502,144.29,144.19,8.5856]
[1728394646575,26.67,144.28,144.2,14.97744815]
[1728394646783,26.67,144.28,144.21,14.97744815]
[1728394646979,26.67,144.26,144.18,1.3633]
[1728394647181,5.8,144.25,144.19,14.98165867]
[1728394647381,3.4683,144.22,144.2,5.76217641]
[1728394647691,3.4683,144.22,144.18,3.4689]
[1728394647992,3.4683,144.22,144.19,5.76242738]
[1728394648282,3.4683,144.22,144.18,3.4689]
[1728394648283,5.8,144.25,144.2,5.76242738]
[1728394648490,5.8,144.25,144.18,9.22163568]
[1728394648682,5.8,144.25,144.19,5.76349793]
[1728394648898,5.8,144.25,144.17,0.12502]
[1728394649390,3.4681,144.22,144.2,5.76350141]
[1728394649592,26.67,144.23,144.17,0.12502]
[1728394649893,3.4684,144.21,144.18,3.469]
[1728394650091,26.67,144.26,144.17,0.12502]
[1728394650288,5.8,144.25,144.19,5.7632262]
[1728394650587,5.8,144.25,144.17,0.12502]
[1728394650888,5.8,144.25,144.18,14.98053071]
[1728394651080,3.4678,144.24,144.19,14.97928297]
[1728394651281,5.8,144.25,144.2,5.76174258]
[1728394651485,3.468,144.23,144.2,3.4685]
[1728394651789,5.8,144.25,144.2,3.4685]
[1728394652291,5.8,144.25,144.17,0.12502]
[1728394652490,5.8,144.25,144.18,5.60051583]
[1728394652686,3.468,144.23,144.19,3.4687]
[1728394652890,3.468,144.23,144.17,0.12502]
[1728394653090,3.468,144.23,144.18,5.60093894]
[1728394653296,3.4677,144.24,144.17,0.12502]
[1728394653592,5.8,144.25,144.18,5.60014358]
[1728394653782,5.8,144.25,144.19,3.4686]
[1728394653981,3.468,144.23,144.19,3.4686]
[1728394654589,5.8,144.25,144.17,0.12502]
[1728394654899,26.67,144.21,144.17,0.12502]
[1728394655087,30.1391,144.18,144.17,0.12502]
[1728394655280,26.67,144.18,144.11,0.12502]
[1728394655692,3.47,144.15,144.11,0.12502]
[1728394655891,5.8,144.16,144.11,0.12502]
[1728394656207,9.2696,144.16,144.11,0.12502]
[1728394656788,5.8,144.16,144.13,3.4702]
[1728394656986,3.7597,144.2,144.11,0.12502]
[1728394657290,5.8,144.19,144.11,0.12502]
[1728394657482,5.8,144.19,144.13,3.4702]
[1728394657995,3.4697,144.16,144.13,3.4702]
[1728394658184,32.47,144.19,144.11,5.92502]
[1728394658692,32.47,144.19,144.11,3.59572]
[1728394658887,32.47,144.19,144.11,0.12502]
[1728394659097,32.47,144.19,144.11,3.59562]
[1728394659492,32.47,144.19,144.11,0.12502]
[1728394659711,3.4698,144.15,144.12,3.4703]
[1728394660008,32.47,144.19,144.11,0.12502]
[1728394660009,5.8,144.19,144.11,0.12502]
[1728394660201,9.269,144.19,144.11,0.12502]
[1728394660796,3.7597,144.2,144.11,0.12502]
[1728394660797,3.4692,144.18,144.14,3.4699]
[1728394662292,5.92,144.18,144.11,0.12502]
[1728394662697,3.4696,144.16,144.11,0.12502]
[1728394662880,5.92,144.18,144.11,0.12502]
[1728394663316,3.4698,144.16,144.12,3.4704]
[1728394663502,5.92,144.18,144.11,0.12502]
[1728394663887,3.4702,144.14,144.11,0.12502]
[1728394664195,5.92,144.18,144.11,0.12502]
[1728394664395,3.4699,144.15,144.12,3.4705]
[1728394664591,3.4699,144.15,144.11,0.12502]
[1728394665194,3.4697,144.16,144.11,0.12502]
[1728394665393,5.92,144.18,144.11,0.12502]
[1728394665592,3.7597,144.2,144.13,3.4702]
[1728394665798,3.7597,144.2,144.11,0.12502]
[1728394665799,5.92,144.19,144.11,0.12502]
[1728394665996,5.92,144.19,144.11,6.04502]
[1728394666189,5.92,144.19,144.13,3.4701]
[1728394666603,3.4692,144.18,144.13,3.4701]
[1728394666784,5.92,144.19,144.13,3.4701]
[1728394667300,5.92,144.19,144.11,6.04502]
[1728394667301,5.92,144.19,144.14,3.4698]
[1728394667794,3.4693,144.17,144.14,3.4698]
[1728394669298,3.4692,144.18,144.15,3.4698]
[1728394669802,5.92,144.19,144.11,6.04502]
[1728394670035,3.4694,144.17,144.14,3.4699]
[1728394670201,5.92,144.19,144.14,3.4699]
[1728394670700,3.4694,144.17,144.14,3.4699]
[1728394671001,7.24450374,144.34,144.17,0.12502]
[1728394671204,2.90182,144.29,144.17,0.12502]
[1728394671402,2.90182,144.29,144.18,26.67]
[1728394671706,2.90182,144.29,144.19,5.92]
[1728394672101,3.467,144.27,144.23,3.4678]
[1728394672495,3.467,144.27,144.23,3.4677]
[1728394672707,26.67,144.28,144.19,5.92]
[1728394672891,5.92,144.27,144.19,5.92]
[1728394673204,5.92,144.27,144.23,3.4677]
[1728394673205,9.387,144.27,144.23,3.4677]
[1728394673601,5.92,144.27,144.23,3.4677]
[1728394674029,3.4673,144.26,144.23,3.4677]
[1728394674315,26.67,144.28,144.18,5.92]
[1728394674504,30.6606,144.28,144.18,5.92]
[1728394674702,30.6606,144.28,144.21,3.4683]
[1728394674703,26.67,144.26,144.21,3.4683]
[1728394674900,5.92,144.25,144.17,6.04502]
[1728394675100,3.4679,144.23,144.17,6.04502]
[1728394675709,3.4679,144.23,144.19,3.4687]
[1728394675902,3.468,144.23,144.19,3.4687]
[1728394676108,5.92,144.25,144.17,0.12502]
[1728394676816,5.92,144.25,144.21,3.4682]
[1728394677001,9.3876,144.25,144.17,0.12502]
[1728394677510,9.3876,144.25,144.21,3.4681]
[1728394678019,9.3876,144.25,144.17,0.12502]
[1728394678230,5.92,144.25,144.22,3.468]
[1728394678505,5.92,144.25,144.17,0.12502]
[1728394678705,5.92,144.25,144.19,3.4687]
[1728394678706,3.4682,144.22,144.19,3.4687]
[1728394679110,5.92,144.21,144.17,0.12502]
[1728394679333,7.2279,144.21,144.17,0.12502]
[1728394679613,8.6039,144.21,144.17,0.12502]
[1728394679812,12.0723,144.21,144.17,0.12502]
[1728394680013,8.6039,144.21,144.17,0.12502]
[1728394680209,8.6039,144.21,144.18,3.4689]
[1728394680405,5.92,144.21,144.17,0.12502]
[1728394680813,5.92,144.21,144.17,3.59422]
[1728394681006,5.92,144.24,144.17,0.12502]
[1728394681624,5.92,144.24,144.19,3.4686]
[1728394681827,3.53944836,144.23,144.19,3.4686]
[1728394682018,5.92,144.24,144.21,3.4681]
[1728394682213,5.92,144.24,144.17,0.12502]
[1728394682449,2.7022,144.26,144.17,0.12502]
[1728394682721,8.6222,144.26,144.17,0.12502]
[1728394683318,8.6222,144.26,144.23,3.4677]
[1728394683513,12.0894,144.26,144.23,3.4677]
[1728394683709,9.3872,144.26,144.23,3.4677]
[1728394683913,5.92,144.26,144.23,3.4677]
[1728394684116,5.92,144.26,144.19,5.92]
[1728394684325,5.92,144.26,144.24,3.4676]
[1728394684523,1.0,144.27,144.21,26.67]
[1728394684728,5.92,144.31,144.23,3.4678]
[1728394685015,36.03483817,144.31,144.19,32.59]
[1728394685230,36.03483817,144.31,144.23,3.4676]
[1728394685416,36.03483817,144.31,144.19,32.59]
[1728394685617,5.92,144.31,144.21,26.67]
[1728394685823,97.35347544,144.32,144.28,3.4666]
[1728394686052,6.2027,144.33,144.28,3.4666]
[1728394686448,5.92,144.33,144.28,3.4666]
[1728394687127,3.4654,144.34,144.28,3.4666]
[1728394687637,3.4655,144.33,144.28,3.4666]
[1728394687929,0.12502,144.35,144.32,3.4655]
[1728394688128,0.12502,144.35,144.27,5.92]
[1728394688334,0.12502,144.35,144.28,26.67]
[1728394688628,0.12502,144.35,144.27,5.92]
[1728394689337,0.12502,144.35,144.28,26.67]
[1728394689530,0.12502,144.35,144.3,3.4661]
[1728394689730,3.4656,144.33,144.26,26.67]
[1728394689941,3.4656,144.33,144.27,6.14]
[1728394690233,3.4654,144.34,144.3,3.4661]
[1728394690433,0.12502,144.35,144.27,6.14]
[1728394690832,3.4654,144.34,144.29,3.4663]
[1728394691133,0.12502,144.35,144.29,3.4663]
[1728394691532,3.4656,144.33,144.29,3.4663]
[1728394691828,0.12502,144.35,144.29,3.4663]
[1728394692033,3.466,144.31,144.28,3.4665]
[1728394692226,32.79,144.33,144.24,4.1884]
[1728394692628,32.79,144.33,144.26,3.4669]
[1728394693032,32.79,144.33,144.24,4.1884]
[1728394693232,32.79,144.33,144.25,3.4672]
[1728394693454,32.79,144.33,144.24,4.1884]
[1728394693831,26.67,144.31,144.24,1.3854]
[1728394694053,26.67,144.31,144.23,0.12502]
[1728394694435,28.0071,144.31,144.23,0.12502]
[1728394695030,3.4667,144.28,144.23,0.12502]
[1728394695236,3.4667,144.28,144.25,3.4673]
[1728394695937,9.5866,144.29,144.25,3.4673]
[1728394696136,2.4122,144.32,144.23,0.12502]
[1728394696331,8.5322,144.32,144.23,0.12502]
[1728394697241,3.4666,144.29,144.25,3.4672]
[1728394697435,8.5322,144.32,144.23,0.12502]
[1728394697935,3.4668,144.28,144.24,3.4674]
[1728394699941,8.5322,144.32,144.24,3.4674]
[1728394700135,3.467,144.27,144.24,3.4674]
[1728394700333,9.53523036,144.28,144.23,0.12502]
[1728394700593,3.4676,144.24,144.23,0.12502]
[1728394700912,3.4676,144.24,144.17,0.12502]
[1728394700913,32.79,144.24,144.17,0.12502]
[1728394701070,3.4685,144.21,144.17,3.59412]
[1728394701241,3.4685,144.21,144.17,0.12502]
[1728394701430,1.3532,144.23,144.18,3.4689]
[1728394701642,3.4685,144.21,144.17,0.12502]
[1728394702344,1.3532,144.23,144.17,0.12502]
[1728394702561,26.67,144.22,144.17,0.12502]
[1728394702843,3.4685,144.21,144.17,0.12502]
[1728394703047,1.0,144.22,144.17,0.12502]
[1728394703436,3.4685,144.21,144.18,3.4689]
[1728394703742,1.0,144.22,144.17,0.12502]
[1728394703973,3.4687,144.2,144.17,3.59422]
[1728394704154,1.0,144.22,144.17,0.12502]
[1728394705437,27.67,144.22,144.17,0.12502]
[1728394705936,3.4691,144.18,144.17,0.12502]
[1728394706246,6.14,144.2,144.17,0.12502]
[1728394706679,3.4689,144.19,144.17,0.12502]
[1728394706843,6.14,144.2,144.17,0.12502]
[1728394707036,9.6087,144.2,144.17,3.59432]
[1728394707344,6.14,144.2,144.17,0.12502]
[1728394707672,3.4691,144.18,144.17,0.12502]
[1728394707859,9.67890545,144.2,144.17,0.12502]
[1728394707860,6.14,144.2,144.17,0.12502]
[1728394708139,9.54706388,144.2,144.17,0.12502]
[1728394708735,3.4691,144.18,144.17,0.12502]
[1728394709140,37.56596388,144.2,144.12,3.4703]
[1728394709338,3.4702,144.14,144.11,0.12502]
[1728394709843,3.4702,144.14,144.12,3.4705]
[1728394710041,3.4702,144.14,144.11,0.12502]
[1728394710247,3.4699,144.15,144.11,0.12502]
[1728394710441,1.4459,144.15,144.11,0.12502]
[1728394710833,3.4701,144.14,144.11,0.12502]
[1728394711036,1.4459,144.15,144.11,0.12502]
[1728394711945,3.4701,144.14,144.11,3.59572]
[1728394712142,1.0,144.19,144.11,3.59572]
[1728394712143,1.0,144.19,144.11,6.26502]
[1728394712343,0.12502,144.23,144.11,6.26502]
[1728394712344,0.12502,144.23,144.12,5.81496311]
[1728394712551,26.67,144.22,144.11,6.26502]
[1728394712742,26.67,144.22,144.12,5.81429835]
[1728394713046,0.12502,144.23,144.13,32.48402344]
[1728394713248,0.12502,144.23,144.14,5.81402344]
[1728394713442,0.12502,144.23,144.13,26.67]
[1728394713646,0.12502,144.23,144.14,5.81287749]
[1728394713859,6.26502,144.23,144.14,1.3707]
[1728394714047,6.26502,144.23,144.14,2.7389]
[1728394714380,3.4681,144.22,144.14,2.7389]
[1728394714943,3.4681,144.22,144.19,3.4687]
[1728394716950,32.93502,144.23,144.12,6.14]
[1728394717145,32.93502,144.23,144.13,5.81452135]
[1728394717344,32.93502,144.23,144.12,6.14]
[1728394717551,1.0,144.22,144.13,26.67]
[1728394718162,3.4687,144.2,144.17,3.4692]
[1728394718353,1.0,144.22,144.17,3.4692]
[1728394718655,3.4687,144.2,144.17,3.4692]
[1728394718852,1.0,144.22,144.13,26.67]
[1728394719054,1.0,144.22,144.12,6.38]
[1728394719258,3.4693,144.17,144.12,6.38]
[1728394719450,9.79758759,144.19,144.11,0.12502]
[1728394719653,6.38,144.19,144.12,5.81537428]
[1728394719857,9.88014807,144.19,144.11,0.12502]
[1728394720054,9.88014807,144.19,144.12,5.81625867]
[1728394720351,36.55014807,144.19,144.11,0.12502]
[1728394720558,2.6904,144.18,144.11,0.12502]
[1728394720950,26.67,144.16,144.11,0.12502]
[1728394721145,6.38,144.15,144.11,3.59572]
[1728394721674,3.4701,144.14,144.11,3.59572]
[1728394721860,6.38,144.15,144.11,0.12502]
[1728394722360,6.38,144.15,144.05,0.12502]
[1728394722361,26.67,144.12,144.05,0.12502]
[1728394722549,3.471,144.1,144.05,0.12502]
[1728394723154,6.889536,144.1,144.05,0.12502]
[1728394723354,3.418536,144.1,144.05,0.12502]
[1728394723555,9.1527,144.11,144.05,0.12502]
[1728394724051,12.67704427,144.11,144.05,0.12502]
[1728394724358,3.4715,144.08,144.05,0.12502]
[1728394724959,12.67704427,144.11,144.05,0.12502]
[1728394725758,3.4716,144.08,144.05,0.12502]
[1728394725959,26.67,144.1,144.05,0.12502]
[1728394726155,6.38,144.09,144.05,0.12502]
[1728394726348,3.4719,144.06,144.05,0.12502]
[1728394726546,26.67,144.08,143.99,3.59862]
[1728394726766,26.67,144.04,143.99,0.12502]
[1728394726963,6.38,144.03,143.99,0.12502]
[1728394727258,26.67,144.01,143.93,1.51792]
[1728394727452,3.48028564,144.0,143.93,1.51792]
[1728394727754,6.38,143.99,143.93,1.51792]
[1728394728264,6.38,143.99,143.97,3.474]
[1728394728859,6.38,143.99,143.96,3.4742]
[1728394729256,6.38,143.99,143.93,1.51792]
[1728394729461,7.4,144.02,143.93,1.51792]
[1728394729965,7.4,144.02,143.99,3.4734]
[1728394730667,1.0,144.02,143.93,1.51792]
[1728394730959,7.4,144.02,143.98,3.4738]
[1728394731168,10.8729,144.02,143.98,3.4738]
[1728394731464,7.4,144.02,143.93,1.51792]
[1728394731662,3.4735,144.0,143.93,1.51792]
[1728394731866,26.67,144.01,143.93,1.51792]
[1728394732090,26.67,144.01,143.95,3.4744]
[1728394732366,26.67,144.01,143.93,1.51792]
[1728394732565,26.67,144.01,143.96,3.4741]
[1728394733362,3.4734,144.0,143.96,3.4741]
[1728394733567,26.67,144.01,143.94,3.4747]
[1728394733965,3.474,143.98,143.94,3.4747]
[1728394734361,6.4,143.98,143.96,3.4743]
[1728394734764,6.4,143.98,143.93,1.51792]
[1728394734968,6.4,144.01,143.98,3.4737]
[1728394735268,6.4,144.01,143.93,1.51792]
[1728394735765,6.4,144.01,143.98,3.4738]
[1728394736274,33.07,144.01,143.93,1.51792]
[1728394736879,3.4737,143.99,143.95,3.4746]
[1728394737062,36.58359109,144.01,143.95,3.4746]
[1728394737373,36.58359109,144.01,143.93,1.51792]
[1728394737572,3.474,143.98,143.93,1.51792]
[1728394737769,36.58359109,144.01,143.93,1.51792]
[1728394737965,3.4739,143.99,143.95,3.4745]
[1728394738268,36.58359109,144.01,143.93,1.51792]
[1728394739078,3.4737,143.99,143.95,3.4745]